Cogmind - Beta 11.1 @@@ ROGUE MODE // 2022.05.21 @ 17:24:46 Player: Fgdfgfthgr Result: Self-destructed Performance ------------- Evolutions (5) 2500 Regions Visited (18) 3600 Robots Destroyed (179) 895 Value Destroyed (5420) 5420 Prototype IDs (64) 1280 Alien Tech Used (0) 0 Bonus (3295) 3295 TOTAL SCORE: 16990 Bonus ------- High Alert Combat Kills 601 Follower Combat Kills 1587 Network Hubs Disabled 200 Aligned with FarCom 300 Met Imprinter 300 Was Imprinted 300 A7 Reached Mainframe 300 Friendly Fire -293 Cogmind --------- Core Integrity 852/1000 Matter 300/300 Energy 150/150 System Corruption 3% Temperature Cool (6) Movement Flying (105) Ox1 Location -5/Factory Parts ------- > --- POWER (2) -------- Micro Nuclear Core > --- PROPULSION (6) --- Improved VTOL Module Cooled Cesium-ion Thruster > --- UTILITY (7) ------ Improved Heat Sink Small Storage Unit Enhanced Optical Array Advanced Sensor Array Advanced Signal Interpreter Improved Hacking Suite Improved System Shield > --- WEAPON (2) ------- Improved Remote Datajack Lance > --- INVENTORY (8) ---- Advanced Cloaking Device Centrium Medium Armor Plating Experimental Thermal Shield Improved Hacking Suite Improved Hacking Suite Advanced Variable Charge Gun Impact Mace Peak State ------------ > --- POWER ------------ Micro Nuclear Core > --- PROPULSION ------- Cesium-ion Thruster Improved VTOL Module Cooled VTOL Module Cooled VTOL Module Cooled VTOL Module Cooled Cesium-ion Thruster > --- UTILITY ---------- Small Storage Unit Enhanced Optical Array Advanced Sensor Array Advanced Signal Interpreter Centrium Medium Armor Plating Improved Hacking Suite Improved System Shield > --- WEAPON ----------- Remote Datajack Lance > --- INVENTORY -------- Xenon Bombardment Thruster Gravity Neutralizer Advanced Cloaking Device Experimental Thermal Shield Improved Hacking Suite Improved Hacking Suite Advanced Variable Charge Gun Impact Mace [Rating: 82] Favorites ----------- Power Micro Nuclear Core Engine Ion Engine Power Core Micro Nuclear Core Propulsion Light Treads Treads Light Treads Leg Aluminum Leg Wheel Wheel Flight Unit Cooled VTOL Module Utility Huge Storage Unit Device Improved Heat Sink Storage Huge Storage Unit Processor Improved Signal Interpreter Hackware System Shield Protection Improved Light Armor Plating Weapon Improved Datajack Energy Gun Small Laser Energy Cannon Advanced Beam Cannon Ballistic Gun Assault Rifle Ballistic Cannon Assault Cannon Launcher Mini Grenade Launcher Special Weapon Remote Datajack Impact Weapon Impact Mace Piercing Weapon Lance Special Melee Weapon Improved Datajack Build | -11 -10 -10 -10 -9 -8 -7 -7 -7 -7 -6 -6 -6 -6 -6 -6 -5 -5 -5 ------- Run | Scr Mat Min Exi Min Mat Fac Low Low Zio Pro Fac Ext Cet Arc Hub Fac Was Fac Slots Evolved 10 | . . . . . 4 2 . . . . 2 . . . . 2 . . Power 1 | . . . . . . . . . . . . . . . . 1 . . Propulsion 4 | . . . . . 2 . . . . . 1 . . . . 1 . . Utility 5 | . . . . . 2 2 . . . . 1 . . . . . . . Weapon . | . . . . . . . . . . . . . . . . . . . Parts Attached 207 | . 18 1 4 1 54 52 2 3 4 . 29 13 3 6 5 2 . 10 Power 11 | . 1 . . 1 2 2 . . . . 2 2 . . . . . 1 Engine 3 | . 1 . . . . . . . . . 1 . . . . . . 1 Core 8 | . . . . 1 2 2 . . . . 1 2 . . . . . . Reactor . | . . . . . . . . . . . . . . . . . . . Propulsion 44 | . 6 . 2 . 18 8 . . . . 4 . . . 2 2 . 2 Treads 21 | . 4 . . . 17 . . . . . . . . . . . . . Leg . | . . . . . . . . . . . . . . . . . . . Wheel 4 | . 2 . 2 . . . . . . . . . . . . . . . Hover . | . . . . . . . . . . . . . . . . . . . Flight 19 | . . . . . 1 8 . . . . 4 . . . 2 2 . 2 Utility 67 | . 7 . . . 17 17 1 . 4 . 12 1 1 3 . . . 4 Device 23 | . 1 . . . 7 5 . . 2 . 5 . . 1 . . . 2 Storage 4 | . 2 . . . 1 1 . . . . . . . . . . . . Processor 10 | . 2 . . . . 6 . . . . 2 . . . . . . . Hackware 6 | . . . . . . 3 . . . . 1 . . 1 . . . 1 Protection 24 | . 2 . . . 9 2 1 . 2 . 4 1 1 1 . . . 1 Artifact . | . . . . . . . . . . . . . . . . . . . Weapon 85 | . 4 1 2 . 17 25 1 3 . . 11 10 2 3 3 . . 3 Energy Gun 28 | . 2 . . . 8 11 . 1 . . . 2 1 3 . . . . Energy Cannon 3 | . . . . . 2 1 . . . . . . . . . . . . Ballistic Gun 7 | . 1 1 1 . 2 . . . . . 2 . . . . . . . Ballistic Cannon 10 | . . . . . 4 . . . . . 3 1 . . 2 . . . Launcher 10 | . . . . . . 2 1 1 . . 3 3 . . . . . . Special Weapon 2 | . . . . . . . . . . . . . . . . . . 2 Impact Weapon 13 | . . . . . . 7 . . . . . 4 1 . 1 . . . Slashing Weapon . | . . . . . . . . . . . . . . . . . . . Piercing Weapon 1 | . . . . . . . . . . . . . . . . . . 1 Special Melee Weapon 11 | . 1 . 1 . 1 4 . 1 . . 3 . . . . . . . Unidentified Prototypes 19 | . . . . . 4 5 . . 1 . 5 1 2 1 . . . . Parts Lost 23 | . 1 1 . . 8 . 1 . . . . 4 . . . . 1 7 Power 3 | . . . . . . . . . . . . 2 . . . . . 1 Propulsion 7 | . . . . . 2 . . . . . . . . . . . . 5 Utility 8 | . . . . . 5 . 1 . . . . . . . . . 1 1 Weapon 5 | . 1 1 . . 1 . . . . . . 2 . . . . . . Highest Loss Streak 4 | . 1 1 . . 2 . 1 . . . . 3 . . . . 1 4 To Critical Strikes . | . . . . . . . . . . . . . . . . . . . Average Slot Usage (%) 97 | . 99 100 100 100 99 98 100 98 93 100 99 93 93 92 93 88 88 92 Engine 4 | . 14 14 14 5 . . . . . . 5 3 . . . . . 1 Core 5 | . . . . 8 9 7 7 7 7 7 . 2 6 6 6 5 5 5 Treads 17 | . 18 28 19 . 35 . . . . . . . . . . . . . Wheel 1 | . 8 . 8 28 . . . . . . . . . . . . . . Flight 12 | . . . . . . 29 30 30 30 30 33 33 33 33 33 35 35 32 Device 6 | . . . . . 10 7 . . 5 . 6 13 13 13 13 11 11 7 Storage 9 | . 14 14 14 14 9 6 7 7 7 7 6 6 6 6 6 5 5 5 Processor 4 | . 1 . . . . 11 7 7 7 7 12 13 13 13 13 11 11 11 Hackware 4 | . . . . . . 9 15 15 15 15 11 6 6 6 6 5 5 10 Protection 11 | . 11 14 14 14 15 7 14 15 3 15 7 6 6 6 6 5 5 3 Energy Gun 7 | . 17 14 14 14 7 6 . 1 . . . . . 5 2 . . . Ballistic Gun 3 | . 9 14 2 14 2 . . . . . . . . . . . . . Ballistic Cannon 2 | . . . . . 6 . . . . . . . . . . . . . Launcher 1 | . . . . . . . 7 5 7 7 5 2 . . . . . . Special Melee Weapon 2 | . 1 . 11 . . 5 7 5 7 7 5 . . . . . . . Naked Turns . | . . . . . . . . . . . . . . . . . . . Heaviest Build 109 | 11 94 93 93 93 109 22 18 20 43 18 25 29 22 24 24 22 22 28 Greatest Support 80 | 20 40 40 40 20 80 20 20 20 20 20 26 38 26 26 26 33 26 39 Greatest Overweight (x) 4 | . 3 2 4 4 1 1 . . 2 . . 1 . . . . . 1 Average Overweight (x) . | . 2 2 2 4 1 . . . 1 . . . . . . . . . Largest Inventory Capacity 25 | . 25 25 25 25 25 25 8 8 8 8 8 8 8 8 8 8 8 8 Average Capacity 18 | . 24 25 25 25 25 8 8 8 8 8 8 8 8 8 8 8 8 8 Most Carried 25 | . 25 25 25 24 25 25 8 8 8 8 8 8 8 8 8 8 8 8 Average Carried 17 | . 22 24 24 23 24 8 7 7 7 8 7 7 7 7 7 7 7 7 Final Capacity 25 | 8 25 25 25 25 25 8 8 8 8 8 8 8 8 8 8 8 8 8 Final Carried 25 | 6 25 25 23 24 25 8 8 8 8 8 8 7 8 8 8 8 8 7 Class Distribution -------------------- 46% | Mutant 13% | Scavenger-Mutant 8% | Hacker-Mutant 8% | Scout 6% | Hacker-Sprinter 5% | Sprinter 3% | Hacker-Scout 3% | Commander-Scout Dominant Class ---------------- Mutant | -10/Materials Mutant | -10/Mines Mutant | -10/Exiles Mutant | -9/Mines Mutant | -8/Materials Sprinter | -7/Factory Hacker-Sprinter | -7/Lower Caves Hacker-Sprinter | -7/Lower Caves Hacker-Mutant | -7/Zion Hacker-Sprinter | -6/Proximity Caves Hacker-Scout | -6/Factory Commander-Scout | -6/Extension Scout | -6/Cetus Scavenger-Scout | -6/Archives Scout | -6/Hub_04(d) Scout | -5/Factory Scout | -5/Waste Hacker-Scout | -5/Factory Resources | -11 -10 -10 -10 -9 -8 -7 -7 -7 -7 -6 -6 -6 -6 -6 -6 -5 -5 -5 ----------- Run | Scr Mat Min Exi Min Mat Fac Low Low Zio Pro Fac Ext Cet Arc Hub Fac Was Fac Matter Collected 3856 | 200 268 82 . 74 1181 563 42 73 95 5 230 764 50 60 10 . . 159 Remotely . | . . . . . . . . . . . . . . . . . . . Salvage Created 6110 | . 554 264 . 87 2296 960 120 60 . . 18 1185 . 339 57 . . 170 Parts 322 | . 44 15 . 6 98 71 13 2 . . 2 45 . 8 4 . . 14 Haulers Intercepted 15 | . 2 . . . 5 5 . . . . . 3 . . . . . . Recyclers Shooed 3 | . . . . . 1 1 . . . . . 1 . . . . . . Parts Field Recycled . | . . . . . . . . . . . . . . . . . . . Retrieved Matter . | . . . . . . . . . . . . . . . . . . . Parts Self-Destructed 12 | . . . . . . . 9 1 2 . . . . . . . . . Prevented 1 | . . . . . . . . 1 . . . . . . . . . . Kills | -11 -10 -10 -10 -9 -8 -7 -7 -7 -7 -6 -6 -6 -6 -6 -6 -5 -5 -5 ------- Run | Scr Mat Min Exi Min Mat Fac Low Low Zio Pro Fac Ext Cet Arc Hub Fac Was Fac Combat Hostiles Destroyed 111 | . 12 5 . 2 42 12 10 1 . . 3 19 . 2 1 . . 2 Melee 2 | . . . . . . . . . . . . . . . . . . 2 Guns 48 | . 12 5 . 2 28 . . 1 . . . . . . . . . . Cannons 13 | . . . . . 13 . . . . . . . . . . . . . AOE 42 | . . . . . . 12 10 . . . 3 17 . . . . . . Classes Destroyed 19 | . 7 2 . . 5 3 . . . . . 1 . . . . . 1 Worker 13 | . 1 1 . . 4 4 . . . . . 1 . . 2 . . . Builder 10 | . 1 1 . . . 3 . . . . . 4 . . 1 . . . Tunneler 6 | . . 1 . . . . . . . . . 2 . . . . . 3 Hauler 15 | . 2 . . . 5 5 . . . . . 3 . . . . . . Recycler 7 | . . . . . 2 2 . . . . . 3 . . . . . . Carrier 1 | . . . . . . 1 . . . . . . . . . . . . Mechanic 1 | . . . . . 1 . . . . . . . . . . . . . Operator 5 | . 1 . . . . . . . . . . . . 4 . . . . Watcher 13 | . 1 . . . 4 5 . . . . . 3 . . . . . . Swarmer 34 | . 3 . . . 2 6 10 . . . 3 9 . . 1 . . . Grunt 51 | . 9 4 . 2 28 3 . . . . . 5 . . . . . . Brawler 1 | . . . . . . 1 . . . . . . . . . . . . Duelist 2 | . . . . . 2 . . . . . . . . . . . . . Protector 1 | . . . . . . 1 . . . . . . . . . . . . Sentry 10 | . . . . . 7 1 . . . . . . . 2 . . . . Hunter 6 | . . . . . 3 . . 1 . . . 2 . . . . . . Programmer 2 | . . . . . . . . . . . . . . . . . . 2 Behemoth 1 | . . . . . . . . . . . . 1 . . . . . . Assembled 1 | . . 1 . . . . . . . . . . . . . . . . Savage 1 | . . . . . . . . . . . . 1 . . . . . . Butcher 2 | . . . . . . . . . . . . 2 . . . . . . Guerrilla 1 | . . . . . . . . . . . . . . 1 . . . . Best Kill Streak 12 | . 5 2 . 2 4 12 10 1 . . 3 10 . 2 2 . . 2 Combat Bots Only 10 | . 5 2 . 2 4 5 10 1 . . 3 9 . 2 1 . . 1 Max Kills in Single Turn 4 | . 2 1 . 1 2 4 3 1 . . 1 4 . 1 2 . . 1 Gunslinging . | . . . . . . . . . . . . . . . . . . . Exploded 4 | . . . . . . 4 3 . . . 1 3 . . . . . . Melee 1 | . . . . . . . . . . . . . . . . . . 1 Uniques/NPCs Destroyed . | . . . . . . . . . . . . . . . . . . . Combat | -11 -10 -10 -10 -9 -8 -7 -7 -7 -7 -6 -6 -6 -6 -6 -6 -5 -5 -5 -------- Run | Scr Mat Min Exi Min Mat Fac Low Low Zio Pro Fac Ext Cet Arc Hub Fac Was Fac Damage Taken 6132 | . 481 319 . 161 2666 396 175 60 . 200 171 583 96 121 141 . 31 531 Core 1083 | . 116 85 . 17 283 95 94 22 . 37 68 81 12 25 . . 31 117 Absorbed by Shields 295 | . . . . . 184 9 . . . . . 10 12 . . . . 80 Redirected to Shielding 10 | . . . . . . 2 4 . . . 4 . . . . . . . Regen/Repaired (Parts) 232 | . . . . . 232 . . . . . . . . . . . . . Core Remaining (%) 60 | 100 . . . 12 48 . . . . 64 . . . . 78 . . . Volleys Fired 392 | . 49 24 1 9 197 41 6 5 . . 7 12 . 34 7 . . . Largest 2 | . 2 2 1 2 2 2 1 1 . . 1 1 . 1 1 . . . Hottest 138 | . 90 60 20 60 138 110 30 55 . . 40 60 . 80 80 . . . Shots Fired 664 | . 98 48 1 18 386 42 6 5 . . 7 12 . 34 7 . . . Gun 519 | . 98 48 1 18 277 34 . 5 . . . 1 . 34 3 . . . Cannon 120 | . . . . . 109 3 . . . . 4 . . . 4 . . . Launcher 25 | . . . . . . 5 6 . . . 3 11 . . . . . . Special . | . . . . . . . . . . . . . . . . . . . Kinetic 250 | . 32 24 1 9 176 . . . . . 4 . . . 4 . . . Thermal 338 | . 66 24 . 9 210 4 . . . . . . . 22 3 . . . Explosive 25 | . . . . . . 5 6 . . . 3 11 . . . . . . Electromagnetic 38 | . . . . . . 33 . 5 . . . . . . . . . . Phasic 13 | . . . . . . . . . . . . 1 . 12 . . . . Robot Hit Streak 18 | . 13 7 . 6 18 14 3 4 . . 6 5 . 4 . . . . Robot Miss Streak 8 | . 3 3 . 2 3 1 1 1 . . 1 8 . 4 3 . . . Penetration Max . | . . . . . . . . . . . . . . . . . . . Secondary Targets 5 | . . 1 . . 4 . . . . . . . . . . . . . Max Gunslinging Chain 1 | . . 1 . . 1 . . . . . . . . . . . . . Shots Hit Robots 498 | . 62 26 4 12 283 32 5 4 . . 3 25 5 23 2 . . 12 Core Hits 328 | . 32 16 . 6 111 38 12 2 . . 4 91 2 7 4 . . 3 Critical Kills 2 | . . . . . . . . . . . . 2 . . . . . . Critical Parts Destroyed 11 | . . . . . 1 . . . . . . 5 . 5 . . . . Critical Strikes 35 | . 4 . . . 17 . . . . . . 7 . 7 . . . . Burn 10 | . 4 . . . 6 . . . . . . . . . . . . . Destroy 2 | . . . . . 2 . . . . . . . . . . . . . Blast 9 | . . . . . 9 . . . . . . . . . . . . . Smash 12 | . . . . . . . . . . . . 7 . 5 . . . . Intensify 2 | . . . . . . . . . . . . . . 2 . . . . Melee Attacks 76 | . . . 4 . 2 6 . . . . 1 23 7 8 3 . . 22 Impact 47 | . . . . . . 6 . . . . . 23 7 8 3 . . . Slashing . | . . . . . . . . . . . . . . . . . . . Piercing 22 | . . . . . . . . . . . . . . . . . . 22 Sneak Attacks 21 | . . . 4 . 2 . . . . . 1 8 . 2 . . . 4 Combat Hostiles 1 | . . . . . . . . . . . . . . 1 . . . . Follow-up Attacks . | . . . . . . . . . . . . . . . . . . . Damage Inflicted 18067 | . 823 312 . 165 5474 3742 619 112 . . 251 4313 185 959 367 . . 745 Guns 6206 | . 823 312 . 165 3543 691 . 82 . . . . . 590 . . . . Cannons 1909 | . . . . . 1909 . . . . . . . . . . . . . Explosions 7135 | . . . . . . 3051 619 30 . . 251 2957 . . 227 . . . Melee 2795 | . . . . . . . . . . . . 1356 185 369 140 . . 745 Ramming 22 | . . . . . 22 . . . . . . . . . . . . . Kinetic 2857 | . 299 98 . 75 2385 . . . . . . . . . . . . . Thermal 4578 | . 524 214 . 90 3067 327 . 30 . . . . . 326 . . . . Explosive 6477 | . . . . . . 2650 619 . . . 251 2957 . . . . . . Electromagnetic 1074 | . . . . . . 765 . 82 . . . . . . 227 . . . Impact 2050 | . . . . . . . . . . . . 1356 185 369 140 . . . Slashing . | . . . . . . . . . . . . . . . . . . . Piercing 745 | . . . . . . . . . . . . . . . . . . 745 Phasic 264 | . . . . . . . . . . . . . . 264 . . . . Highest Corruption 3 | . . . . . 1 . . . . . . . . . 2 . . 3 Average Corruption 1 | . . . . . 1 . . . . . . . . . 2 . . 1 Corruption Purged . | . . . . . . . . . . . . . . . . . . . Corruption Blocked . | . . . . . . . . . . . . . . . . . . . Effects 2 | . . . . . . . . . . . . . . . . . . 2 Matter Fused 1 | . . . . . . . . . . . . . . . . . . 1 Data Loss (minor) 1 | . . . . . . . . . . . . . . . . . . 1 Overload Shots . | . . . . . . . . . . . . . . . . . . . Overflow Damage 1473 | . . . . . 36 161 27 . . . . 650 . 319 17 . . 263 Projectiles 36 | . . . . . 36 . . . . . . . . . . . . . Explosions 205 | . . . . . . 161 27 . . . . 17 . . . . . . Melee 1232 | . . . . . . . . . . . . 633 . 319 17 . . 263 Knockbacks 28 | . . . . . 20 . . . . . . 5 . . 3 . . . Impact 7 | . . . . . . . . . . . . 5 . . 2 . . . Kinetic 17 | . . . . . 17 . . . . . . . . . . . . . Secondary 4 | . . . . . 3 . . . . . . . . . 1 . . . Self-Inflicted Damage 369 | . . . . . . 126 86 . . . 13 51 . . 93 . . . Shots 11 | . . . . . . 4 2 . . . 1 3 . . 1 . . . Rammed 1 | . . . . . 1 . . . . . . . . . . . . . Targets Rammed 2 | . . . . . 2 . . . . . . . . . . . . . Kicked . | . . . . . . . . . . . . . . . . . . . Crushed 1 | . . . . . 1 . . . . . . . . . . . . . Highest Temperature 406 | . 322 162 . 192 406 48 . 62 . 14 30 15 . 200 52 11 . 78 Average Temperature 51 | . 104 51 . 90 49 16 . 36 . 6 6 2 . 55 24 5 . 41 Received Heat Transfer 1940 | . 165 132 . 87 1249 24 . 6 . 60 33 93 12 18 . . . 61 Effects 8 | . 2 . . . 6 . . . . . . . . . . . . . Shutdowns 1 | . . . . . 1 . . . . . . . . . . . . . Interference 3 | . 1 . . . 2 . . . . . . . . . . . . . Matter Decay 1 | . . . . . 1 . . . . . . . . . . . . . Damage (minor) 3 | . 1 . . . 2 . . . . . . . . . . . . . Siege Activations . | . . . . . . . . . . . . . . . . . . . Robots Corrupted 1 | . . . . . . 1 . . . . . . . . . . . . Combat Hostiles . | . . . . . . . . . . . . . . . . . . . Parts Fried 18 | . . . . . . 4 . 1 . . . 9 . 4 . . . . Impact Corruptions 29 | . . . . . . . . . . . . 19 . 9 1 . . . Robots Melted 1 | . . . . . 1 . . . . . . . . . . . . . Combat Hostiles 1 | . . . . . 1 . . . . . . . . . . . . . Parts Melted 11 | . 2 . . . 9 . . . . . . . . . . . . . Heat Transferred 9208 | . 1658 475 . 200 6094 287 . 50 . . . . . 444 . . . . Parts Sabotaged . | . . . . . . . . . . . . . . . . . . . Parts Stolen . | . . . . . . . . . . . . . . . . . . . Parts Stripped . | . . . . . . . . . . . . . . . . . . . Power Chain Reactions 5 | . . . . . . 4 . 1 . . . . . . . . . . Missiles Intercepted . | . . . . . . . . . . . . . . . . . . . Alert | -11 -10 -10 -10 -9 -8 -7 -7 -7 -7 -6 -6 -6 -6 -6 -6 -5 -5 -5 ------- Run | Scr Mat Min Exi Min Mat Fac Low Low Zio Pro Fac Ext Cet Arc Hub Fac Was Fac Peak Influence 1735 | . 180 115 . 50 804 1735 . . . . 459 1390 1059 604 461 255 104 284 Initial 778 | . . 18 . . 19 357 . . . . . 90 778 423 141 240 89 65 Average 372 | . 86 26 . 40 401 834 . . . . 291 679 957 569 147 243 94 181 Maximum Alert Level 5 | . . . . . 3 5 . . . . 2 4 3 2 2 1 . 1 Low Security (%) 39 | . 100 100 . 100 17 . . . . . 36 5 . . 95 . 100 46 Level 1 21 | . . . . . 40 18 . . . . 31 12 . . . 100 . 53 Level 2 24 | . . . . . 30 37 . . . . 31 37 . 100 4 . . . Level 3 10 | . . . . . 11 16 . . . . . 32 100 . . . . . Level 4 2 | . . . . . . 13 . . . . . 11 . . . . . . Level 5 1 | . . . . . . 13 . . . . . . . . . . . . High Security . | . . . . . . . . . . . . . . . . . . . Max Security . | . . . . . . . . . . . . . . . . . . . Squads Dispatched 41 | . 3 . . . 10 12 . . . . 7 5 1 . 2 . . 1 Investigation 24 | . 2 . . . 5 5 . . . . 6 3 1 . 1 . . 1 Extermination . | . . . . . . . . . . . . . . . . . . . Reinforcement 9 | . 1 . . . 2 3 . . . . 1 1 . . 1 . . . Assault 6 | . . . . . 1 4 . . . . . 1 . . . . . . Garrison 2 | . . . . . 2 . . . . . . . . . . . . . Intercept . | . . . . . . . . . . . . . . . . . . . Searches Triggered 1 | . . . . . . . . . . . 1 . . . . . . . Construction Impeded 3 | . . . . . 1 1 . . . . . 1 . . . . . . Haulers Reinforced 1 | . . . . . . 1 . . . . . . . . . . . . Active Scanning Responses . | . . . . . . . . . . . . . . . . . . . Cargo Convoy Interrupts . | . . . . . . . . . . . . . . . . . . . Stealth | -11 -10 -10 -10 -9 -8 -7 -7 -7 -7 -6 -6 -6 -6 -6 -6 -5 -5 -5 --------- Run | Scr Mat Min Exi Min Mat Fac Low Low Zio Pro Fac Ext Cet Arc Hub Fac Was Fac Distress Signals 15 | . . 1 . . 7 . . . . . 1 3 1 . 1 . . 1 Communications Jammed . | . . . . . . . . . . . . . . . . . . . Distress Signals . | . . . . . . . . . . . . . . . . . . . Times Spotted 275 | . 19 7 . 2 69 35 13 2 . 9 22 39 8 19 11 . 4 16 Peak Tracking Total 9 | . 6 2 9 2 7 9 4 4 . 8 5 8 5 2 8 . 4 7 Tactical Retreats 30 | . . 1 . . 5 11 . 2 . . 3 3 1 . 2 . . 2 Traps | -11 -10 -10 -10 -9 -8 -7 -7 -7 -7 -6 -6 -6 -6 -6 -6 -5 -5 -5 ------- Run | Scr Mat Min Exi Min Mat Fac Low Low Zio Pro Fac Ext Cet Arc Hub Fac Was Fac Traps Triggered 16 | . . . . . 2 3 . . . . 1 3 . . 1 1 . 5 Indirectly . | . . . . . . . . . . . . . . . . . . . Trap Hack Attempts 100 | . 71 . . . 29 . . . . . . . . . . . . . Triggered . | . . . . . . . . . . . . . . . . . . . Disarmed 2 | . 2 . . . . . . . . . . . . . . . . . Reprogrammed 2 | . . . . . 2 . . . . . . . . . . . . . Reused . | . . . . . . . . . . . . . . . . . . . Traps Extracted . | . . . . . . . . . . . . . . . . . . . Installed . | . . . . . . . . . . . . . . . . . . . Triggered 4 | . . . . . . . . . . 4 . . . . . . . . Fabricated Traps 3 | . . . . . . . . . 3 . . . . . . . . . Most Traps Carried 3 | . . . . . . . . . 3 3 3 . . . . . . . Machines | -11 -10 -10 -10 -9 -8 -7 -7 -7 -7 -6 -6 -6 -6 -6 -6 -5 -5 -5 ---------- Run | Scr Mat Min Exi Min Mat Fac Low Low Zio Pro Fac Ext Cet Arc Hub Fac Was Fac Machines Disabled 47 | . . . 1 . 1 24 . . . . 1 4 4 2 10 . . . Max in Single Turn 10 | . . . 1 . 1 8 . . . . 1 1 1 . 10 . . . Garrison Access 5 | . . . . . 1 2 . . . . 1 . . . . . . 1 Network Hub 1 | . . . . . . . . . . . . . . . 1 . . . Machines Sabotaged . | . . . . . . . . . . . . . . . . . . . Garrisons Compromised . | . . . . . . . . . . . . . . . . . . . Overloaded Fab Kills 1 | . . . . . . 1 . . . . . . . . . . . . Hacking | -11 -10 -10 -10 -9 -8 -7 -7 -7 -7 -6 -6 -6 -6 -6 -6 -5 -5 -5 --------- Run | Scr Mat Min Exi Min Mat Fac Low Low Zio Pro Fac Ext Cet Arc Hub Fac Was Fac Machines Accessed 62 | . 8 . 2 . 14 19 . . . . 7 10 1 . . . . 1 Terminals 36 | . 6 . . . 9 10 . . . . . 10 1 . . . . . Fabricators 6 | . . . . . . 4 . . . . 2 . . . . . . . Repair Stations 2 | . . . . . 1 1 . . . . . . . . . . . . Recycling Units 8 | . 2 . . . 2 2 . . . . 2 . . . . . . . Scanalyzers 2 | . . . . . 1 . . . . . 1 . . . . . . . Garrison Access 6 | . . . . . 1 2 . . . . 2 . . . . . . 1 Total Hacks 156 | . 26 . 2 . 46 43 . . . . 15 21 2 . . . . 1 Successful 81 | . 17 . 2 . 24 18 . . . . 10 9 . . . . . 1 Failed 75 | . 9 . . . 22 25 . . . . 5 12 2 . . . . . Catastrophic 12 | . . . . . 3 4 . . . . 1 2 2 . . . . . Database Lockouts . | . . . . . . . . . . . . . . . . . . . Manual 114 | . 16 . 1 . 20 24 . . . . 19 3 1 . 18 . . 12 Terminals 106 | . 24 . . . 31 28 . . . . . 21 2 . . . . . Fabricators 17 | . . . . . . 8 . . . . 9 . . . . . . . Repair Stations 6 | . . . . . 5 1 . . . . . . . . . . . . Recycling Units 10 | . 2 . . . 3 3 . . . . 2 . . . . . . . Scanalyzers 5 | . . . . . 4 . . . . . 1 . . . . . . . Garrison Access 10 | . . . . . 3 3 . . . . 3 . . . . . . 1 Terminal Hacks 38 | . 12 . 2 . 10 5 . . . . . 9 . . . . . . Record 1 | . . . 1 . . . . . . . . . . . . . . . Part Schematic 1 | . 1 . . . . . . . . . . . . . . . . . Robot Analysis 6 | . 4 . . . 2 . . . . . . . . . . . . . Prototype ID Bank 6 | . 2 . . . 3 1 . . . . . . . . . . . . Open Door 9 | . . . . . . . . . . . . 9 . . . . . . Branch Access Points 3 | . 1 . . . 1 1 . . . . . . . . . . . . Terminal Index 2 | . 1 . . . 1 . . . . . . . . . . . . . Locate Traps 7 | . 3 . . . 2 2 . . . . . . . . . . . . Zone Layout 2 | . . . . . 1 1 . . . . . . . . . . . . EX-Prototype ID Bank 1 | . . . 1 . . . . . . . . . . . . . . . Fabricator Hacks 6 | . . . . . . 3 . . . . 3 . . . . . . . Load Schematic 4 | . . . . . . 2 . . . . 2 . . . . . . . Build 2 | . . . . . . 1 . . . . 1 . . . . . . . Repair Station Hacks 4 | . . . . . 4 . . . . . . . . . . . . . Scan Component 2 | . . . . . 2 . . . . . . . . . . . . . Repair 2 | . . . . . 2 . . . . . . . . . . . . . Recycling Unit Hacks . | . . . . . . . . . . . . . . . . . . . Scanalyzer 4 | . . . . . 4 . . . . . . . . . . . . . Insert Component 2 | . . . . . 2 . . . . . . . . . . . . . Analyze 2 | . . . . . 2 . . . . . . . . . . . . . Garrison Access Hacks 5 | . . . . . 1 2 . . . . 1 . . . . . . 1 Seal Access 5 | . . . . . 1 2 . . . . 1 . . . . . . 1 Unauthorized Hacks 24 | . 5 . . . 5 8 . . . . 6 . . . . . . . Terminals 9 | . 3 . . . 3 3 . . . . . . . . . . . . Assimilate 1 | . . . . . . 1 . . . . . . . . . . . . Botnet 5 | . 2 . . . 2 1 . . . . . . . . . . . . Detonate 1 | . . . . . . 1 . . . . . . . . . . . . Operators 2 | . 1 . . . 1 . . . . . . . . . . . . . Fabricators 6 | . . . . . . 3 . . . . 3 . . . . . . . Prioritize 1 | . . . . . . . . . . . 1 . . . . . . . Liberate 1 | . . . . . . . . . . . 1 . . . . . . . Overload 2 | . . . . . . 2 . . . . . . . . . . . . Recompile 2 | . . . . . . 1 . . . . 1 . . . . . . . Repair Stations . | . . . . . . . . . . . . . . . . . . . Recycling Units 8 | . 2 . . . 2 2 . . . . 2 . . . . . . . Tunnel 8 | . 2 . . . 2 2 . . . . 2 . . . . . . . Scanalyzers 1 | . . . . . . . . . . . 1 . . . . . . . Extract 1 | . . . . . . . . . . . 1 . . . . . . . Garrison Access . | . . . . . . . . . . . . . . . . . . . Data Cores Recovered . | . . . . . . . . . . . . . . . . . . . Used . | . . . . . . . . . . . . . . . . . . . Hacking Detections 40 | . 6 . . . 11 13 . . . . 3 5 2 . . . . . Full Trace Events 6 | . . . . . 2 . . . . . 1 2 1 . . . . . Feedback Events . | . . . . . . . . . . . . . . . . . . . Feedback Blocked . | . . . . . . . . . . . . . . . . . . . Robot Schematics Acquired . | . . . . . . . . . . . . . . . . . . . Robots Built . | . . . . . . . . . . . . . . . . . . . Authchips . | . . . . . . . . . . . . . . . . . . . Time . | . . . . . . . . . . . . . . . . . . . Total Robot Build Rating . | . . . . . . . . . . . . . . . . . . . Part Schematics Acquired 4 | . 1 . . . 2 . . . . . 1 . . . . . . . Parts Built 2 | . . . . . . 1 . . . . 1 . . . . . . . Authchips 2 | . . . . . . 1 . . . . 1 . . . . . . . Time 88 | . . . . . . 44 . . . . 44 . . . . . . . Total Part Build Rating 8 | . . . . . . 4 . . . . 4 . . . . . . . Parts Repaired 2 | . . . . . 2 . . . . . . . . . . . . . Time 52 | . . . . . 52 . . . . . . . . . . . . . Parts Recycled . | . . . . . . . . . . . . . . . . . . . Recycled Matter . | . . . . . . . . . . . . . . . . . . . Retrieved Matter . | . . . . . . . . . . . . . . . . . . . Retrieved Components . | . . . . . . . . . . . . . . . . . . . Parts Scanalyzed 2 | . . . . . 2 . . . . . . . . . . . . . Part Schematics Acquired 2 | . . . . . 2 . . . . . . . . . . . . . Parts Damaged . | . . . . . . . . . . . . . . . . . . . Bothacking | -11 -10 -10 -10 -9 -8 -7 -7 -7 -7 -6 -6 -6 -6 -6 -6 -5 -5 -5 ------------ Run | Scr Mat Min Exi Min Mat Fac Low Low Zio Pro Fac Ext Cet Arc Hub Fac Was Fac Used RIF Installer . | . . . . . . . . . . . . . . . . . . . Robots Hacked 5 | . . . 4 . . . . . . . 1 . . . . . . . Non-combat 4 | . . . 3 . . . . . . . 1 . . . . . . . Combat 1 | . . . 1 . . . . . . . . . . . . . . . Robot Hacks Applied 5 | . . . 4 . . . . . . . 1 . . . . . . . parse_system 4 | . . . 4 . . . . . . . . . . . . . . . find_dsf 1 | . . . . . . . . . . . 1 . . . . . . . Relay Couplers Released . | . . . . . . . . . . . . . . . . . . . Fabnet Peak Effective % . | . . . . . . . . . . . . . . . . . . . Robots Rewired 7 | . . . . . . . . . . . . 7 . . . . . . Allies Hacked . | . . . . . . . . . . . . . . . . . . . Hacks Repelled . | . . . . . . . . . . . . . . . . . . . Allies | -11 -10 -10 -10 -9 -8 -7 -7 -7 -7 -6 -6 -6 -6 -6 -6 -5 -5 -5 -------- Run | Scr Mat Min Exi Min Mat Fac Low Low Zio Pro Fac Ext Cet Arc Hub Fac Was Fac Total Allies 38 | . . . . . . 1 . . 4 . 3 24 . . 3 . . 3 Largest Group 11 | . . . . . . 1 . . 4 4 2 11 9 4 4 . . 3 Highest-Rated Group 636 | . . . . . . 26 . . 155 155 170 636 523 364 173 . . 210 Highest-Rated Ally 159 | . . . . . . 26 . . 41 41 85 159 159 140 89 . . 70 Zionite Dispatches 5 | . . . . . . . . . . . 2 1 . . 1 . . 1 Heavy 2 | . . . . . . . . . . . 1 1 . . . . . . Light 1 | . . . . . . . . . . . . . . . . . . 1 Fire 1 | . . . . . . . . . . . . . . . 1 . . . Kinetic Resupply 1 | . . . . . . . . . . . 1 . . . . . . . Total Orders 2 | . . . . . . . . . . . 2 . . . . . . . ROAM 1 | . . . . . . . . . . . 1 . . . . . . . DROP 1 | . . . . . . . . . . . 1 . . . . . . . Ally Attacks 250 | . . . . . . . . . . . 12 141 58 13 9 . . 17 Total Damage 6879 | . . . . . . . . . . . 822 3673 1683 336 56 . . 309 Kills 50 | . . . . . . . . . . . 4 28 11 3 . . . 4 Allies Corrupted 1 | . . . . . . . . . . . . . . . . . . 1 Allies Melted . | . . . . . . . . . . . . . . . . . . . Intel | -11 -10 -10 -10 -9 -8 -7 -7 -7 -7 -6 -6 -6 -6 -6 -6 -5 -5 -5 ------- Run | Scr Mat Min Exi Min Mat Fac Low Low Zio Pro Fac Ext Cet Arc Hub Fac Was Fac Robot Analysis Total 6 | . 4 . . . 2 . . . . . . . . . . . . . Derelict Logs Recovered 8 | . . 1 . 2 . . 1 1 1 2 . . . . . . . . Drone Launches . | . . . . . . . . . . . . . . . . . . . Drone Recoveries . | . . . . . . . . . . . . . . . . . . . Zionite Intel Received 6 | . . . . . . . . . . . 1 . . . 3 . . 2 Branch Access 1 | . . . . . . . . . . . . . . . 1 . . . Emergency Access 2 | . . . . . . . . . . . 1 . . . . . . 1 Prototype Stockpiles 1 | . . . . . . . . . . . . . . . 1 . . . Unaware Analyses 1 | . . . . . . . . . . . . . . . 1 . . . Active Terminals 1 | . . . . . . . . . . . . . . . . . . 1 Exploration | -11 -10 -10 -10 -9 -8 -7 -7 -7 -7 -6 -6 -6 -6 -6 -6 -5 -5 -5 ------------- Run | Scr Mat Min Exi Min Mat Fac Low Low Zio Pro Fac Ext Cet Arc Hub Fac Was Fac Turns Passed 11710 | . 1531 1089 596 81 3696 825 86 114 1348 94 401 888 167 442 86 32 26 208 Spaces Moved 9858 | 1 552 229 245 37 1142 2194 266 375 1054 351 1135 1040 176 224 195 106 104 432 Core . | . . . . . . . . . . . . . . . . . . . Treads 1772 | . 270 229 131 . 1142 . . . . . . . . . . . . . Legs 41 | 1 40 . . . . . . . . . . . . . . . . . Wheels 393 | . 242 . 114 37 . . . . . . . . . . . . . . Hover . | . . . . . . . . . . . . . . . . . . . Flight 7652 | . . . . . . 2194 266 375 1054 351 1135 1040 176 224 195 106 104 432 Fastest Speed 20 | 120 120 320 140 140 240 26 26 26 26 26 23 20 23 23 23 20 23 20 Average Speed 81 | 120 224 320 236 140 240 26 26 26 102 26 23 23 23 23 23 21 23 25 Slowest Speed 320 | 120 320 320 320 140 240 94 26 26 156 26 26 92 23 23 23 23 23 100 Overloaded Moves 59 | . . . . . . . . . . . . 11 . . . 16 . 32 Propulsion Burnouts . | . . . . . . . . . . . . . . . . . . . Robots Hopped 50 | . . . . . . 26 . . . 1 12 7 . . 1 . . 3 Cave-ins Triggered . | . . . . . . . . . . . . . . . . . . . Exploration Rate (%) 53 | 2 75 46 64 9 85 63 44 67 89 68 35 84 78 82 32 4 79 19 Regions Visited 18 Branch Regions 11 Pre-discovered Areas 11 | . 2 . 1 . 2 2 . . 1 1 2 . . . . . . . Known Exits Taken 12 | . 1 . . . 1 1 1 1 1 1 1 1 1 1 1 . . . Unknown Exits Taken 4 | 1 . 1 1 1 . . . . . . . . . . . . . . Scrap Searched 6 | . . . . . . . 1 2 2 1 . . . . . . . . Spaces Dug 12 | . . . . . . 6 . . . . 3 1 . . 1 . . 1 Terrain Destroyed 625 | . . . . . 8 158 48 2 . . 13 197 . 6 192 . . 1 Melee 8 | . . . . . . 6 . . . . . 1 . . . . . 1 Projectile 21 | . . . . . 8 . . . . . 4 . . 6 3 . . . AOE 596 | . . . . . . 152 48 2 . . 9 196 . . 189 . . . Terrain Rammed . | . . . . . . . . . . . . . . . . . . . Walls Destroyed . | . . . . . . . . . . . . . . . . . . . Machines Disabled . | . . . . . . . . . . . . . . . . . . . Actions | -11 -10 -10 -10 -9 -8 -7 -7 -7 -7 -6 -6 -6 -6 -6 -6 -5 -5 -5 --------- Run | Scr Mat Min Exi Min Mat Fac Low Low Zio Pro Fac Ext Cet Arc Hub Fac Was Fac Total 12702 | . 759 540 259 49 1739 2351 275 385 1324 351 1257 1616 293 569 224 115 105 491 Wait 1688 | . 21 284 . . 216 9 1 . 263 2 66 423 101 282 10 7 . 3 Move 9745 | . 551 228 244 36 1141 2141 265 374 1053 348 1113 1026 175 223 192 106 103 426 Hop 46 | . . . . . . 26 . . . 1 9 6 . . 1 . . 3 Pick Up 120 | . 31 2 2 2 43 15 1 1 . . 9 4 1 7 1 . 1 . Fast Attach 63 | . 4 . . . 11 20 . 1 3 . 12 1 2 2 1 . . 6 Attach 48 | . 2 1 . 1 16 10 1 . 1 . 4 5 1 . 2 1 . 3 Detach 20 | . 2 . . . 3 5 . . 1 . . 2 3 . 2 . . 2 Swap 96 | . 12 . 4 . 27 22 1 2 . . 13 7 . 4 2 1 . 1 Drop 156 | . 16 1 4 1 52 35 . 2 3 . 23 2 3 9 3 . 1 1 Fire 392 | . 49 24 1 9 197 41 6 5 . . 7 12 . 34 7 . . . Melee 76 | . . . 4 . 2 6 . . . . 1 23 7 8 3 . . 22 Ram . | . . . . . . . . . . . . . . . . . . . Kick . | . . . . . . . . . . . . . . . . . . . Crush 2 | . . . . . 2 . . . . . . . . . . . . . Escape Stasis 91 | . . . . . . 17 . . . . . 50 . . . . . 24 Rewire 59 | . . . . . . 4 . . . . . 55 . . . . . . Trap 100 | . 71 . . . 29 . . . . . . . . . . . . . Miscellaneous . | . . . . . . . . . . . . . . . . . . . Route ------- -11/Scrapyard -10/Materials (discovered 4 exits: [*Mat x2] / *Min x2) -10/Mines -10/Exiles -9/Mines -8/Materials (discovered 3 exits: *Fac x3) -7/Factory (discovered 3 exits: *Fac / *Low x2) -7/Lower Caves -7/Lower Caves -7/Zion (discovered 2 exits: Dee / *Pro) -6/Proximity Caves -6/Factory (discovered 2 exits: *Low / *Ext) -6/Extension (discovered 2 exits: *Fac / *Cet) -6/Cetus -6/Archives (discovered 3 exits: *Fac / *Hub x2) -6/Hub_04(d) -5/Factory -5/Waste -5/Factory (discovered 1 exit: *Fac) History --------- Turn | Location | Event 1 | -11/Scrapyard | Discovered new exit (range 0) 1 | -11/Scrapyard | Entered Materials 178 | -10/Materials | Discovered new exit (range 13) 317 | -10/Materials | Build established: Mutant 331 | -10/Materials | Discovered new exit (range 4) 333 | -10/Materials | Discovered new exit (range 6) 371 | -10/Materials | Identified exit to Mines 792 | -10/Materials | Discovered new exit (range 16) 1532 | -10/Materials | Entered Mines 1564 | -10/Mines | Learned 2 Materials zone layouts 1617 | -10/Mines | Assembled infested the area 1712 | -10/Mines | Core integrity fell below 50% 2026 | -10/Mines | Deemed a non-threat by the Exiles lab entrance 2026 | -10/Mines | Discovered new exit (range 5) 2454 | -10/Mines | Core integrity fell below 20% 2621 | -10/Mines | Entered Exiles 2698 | -10/Exiles | Met 8R-AWN 2756 | -10/Exiles | Met EX-HEX 2853 | -10/Exiles | Met EX-BIN 2944 | -10/Exiles | Aligned with FarCom system 2947 | -10/Exiles | Given EX-Vault access code 3024 | -10/Exiles | Opened EX-Vault 3051 | -10/Exiles | Found 0b10 Alert Chip 3054 | -10/Exiles | Found Modified TNC 3083 | -10/Exiles | Warned to stay clear of 0b10 Research branches 3128 | -10/Exiles | Met EX-DEC 3135 | -10/Exiles | Learned location of Zion (-7) 3185 | -10/Exiles | Attacked by the Exiles 3206 | -10/Exiles | Discovered new exit (range 10) 3217 | -10/Exiles | Entered Mines 3238 | -9/Mines | Discovered new exit (range 11) 3264 | -9/Mines | Learned location of 1 exit from Materials 3298 | -9/Mines | Entered Materials 3298 | -8/Materials | Evolved 4 slots: Propulsion x2, Utility x2 3299 | -8/Materials | Identified exit to Factory 3772 | -8/Materials | Build established: Scavenger-Mutant 4669 | -8/Materials | Repaired Lgt. Treads 4696 | -8/Materials | Repaired Lgt. Treads 4992 | -8/Materials | Build established: Mutant 5851 | -8/Materials | Discovered exit to Factory (range 14) 6498 | -8/Materials | First assault squad dispatched 6520 | -8/Materials | Garrison activated, responded to threat 6763 | -8/Materials | Core integrity fell below 50% 6838 | -8/Materials | Build established: Scavenger-Mutant 6994 | -8/Materials | Entered Factory 6994 | -7/Factory | Evolved 2 slots: Utility x2 7228 | -7/Factory | Discovered new exit (range 15) 7311 | -7/Factory | Build established: Sprinter 7394 | -7/Factory | First assault squad dispatched 7459 | -7/Factory | Fabricated Cld. VTOL Module (x1) 7505 | -7/Factory | Discovered new exit (range 9) 7513 | -7/Factory | Identified exit to Factory 7711 | -7/Factory | Identified exit to Lower Caves 7819 | -7/Factory | Entered Lower Caves 7876 | -7/Lower Caves | Destroyed 10 combat bots 7880 | -7/Lower Caves | Identified exit to Lower Caves 7887 | -7/Lower Caves | Encountered a Warlord checkpoint 7896 | -7/Lower Caves | Attracted the attention of an 0b10 checkpoint 7905 | -7/Lower Caves | Entered another Lower Caves area 7932 | -7/Lower Caves | Build established: Hacker-Sprinter 7975 | -7/Lower Caves | Learned location of 1 exit from Factory 7978 | -7/Lower Caves | Encountered a Warlord checkpoint 8016 | -7/Lower Caves | Discovered new exit (range 13) 8019 | -7/Lower Caves | Identified exit to Zion 8019 | -7/Lower Caves | Entered Zion 8047 | -7/Zion | Discovered new exit (range 9) 8056 | -7/Zion | Found Prototype Device 8056 | -7/Zion | Identified Bomb Factory No. 2 8228 | -7/Zion | Identified exit to Deep Caves 8343 | -7/Zion | Build established: Hacker-Mutant 8366 | -7/Zion | Learned location of Warlord (-4) 8468 | -7/Zion | Given A8's code to call for help 9144 | -7/Zion | Imprinted 9146 | -7/Zion | Declared Zion's savior 9182 | -7/Zion | Identified exit to Proximity Caves 9367 | -7/Zion | Entered Proximity Caves 9367 | -6/Proximity Caves | Accompanied by 4 allies 9394 | -6/Proximity Caves | Build established: Hacker-Sprinter 9448 | -6/Proximity Caves | Spotted B-75 Beast 9461 | -6/Proximity Caves | Entered Factory 9461 | -6/Factory | Evolved 2 slots: Propulsion x1, Utility x1 9462 | -6/Factory | Identified exit to Extension 9597 | -6/Factory | Retrieved Zion intel report: Emergency Access 9598 | -6/Factory | Zion Heavy squad teleported in 9701 | -6/Factory | Found Prototype Launcher 9701 | -6/Factory | Identified Rocket Array 9742 | -6/Factory | Fabricated Cld. VTOL Module (x1) 9801 | -6/Factory | Zion Kinetic Resupply teleported in 9811 | -6/Factory | Search patrols dispatched 9821 | -6/Factory | Discovered new exit (range 20) 9825 | -6/Factory | Identified exit to Lower Caves 9862 | -6/Factory | Entered Extension 9908 | -6/Extension | Rescued a captive Derelict 9937 | -6/Extension | Disrupted transfer network 9947 | -6/Extension | Destroyed 9 combat bots 10105 | -6/Extension | Rescued a captive Derelict 10106 | -6/Extension | Rescued a captive Derelict 10358 | -6/Extension | Build established: Commander-Scout 10415 | -6/Extension | Spotted B-75 Beast 10443 | -6/Extension | Spotted B-75 Beast 10450 | -6/Extension | Destroyed B-75 Beast 10477 | -6/Extension | Rescued a captive Derelict 10496 | -6/Extension | Lost 3 parts (2p1w) 10520 | -6/Extension | Rescued a captive Derelict 10520 | -6/Extension | Rescued a captive Derelict 10525 | -6/Extension | Rescued a captive Derelict 10539 | -6/Extension | Zion Heavy squad teleported in 10540 | -6/Extension | Rescued a captive Derelict 10549 | -6/Extension | Rescued a captive Derelict 10562 | -6/Extension | First assault squad dispatched 10583 | -6/Extension | Rescued a captive Derelict 10611 | -6/Extension | Rescued A7 10613 | -6/Extension | Rescued a captive Derelict 10614 | -6/Extension | Rescued a captive Derelict 10616 | -6/Extension | Enhanced Grunt warped into view, answering call for help 10617 | -6/Extension | Enhanced Grunt warped into view, answering call for help 10726 | -6/Extension | Discovered new exit (range 11) 10726 | -6/Extension | Discovered new exit (range 7) 10731 | -6/Extension | Identified exit to Cetus 10750 | -6/Extension | Entered Cetus 10750 | -6/Cetus | Accompanied by 9 allies (A7) 10755 | -6/Cetus | Acquired a Cetus Manufacturing Module code from A7 10765 | -6/Cetus | Spotted Cetus Guard 10765 | -6/Cetus | Spotted Cetus Guard 10765 | -6/Cetus | Spotted Cetus Guard 10766 | -6/Cetus | Spotted Cetus Guard 10773 | -6/Cetus | Build established: Scout 10782 | -6/Cetus | Allies destroyed Cetus Guard 10787 | -6/Cetus | Allies destroyed Cetus Guard 10792 | -6/Cetus | Started Cetus Manufacturing Module 10806 | -6/Cetus | Allies destroyed Cetus Guard 10806 | -6/Cetus | Cetus Manufacturing Module disabled 10868 | -6/Cetus | Escorted A7 to Cetus Mainframe 10870 | -6/Cetus | Discovered new exit (range 22) 10874 | -6/Cetus | Identified exit to Archives 10917 | -6/Cetus | Entered Archives 10917 | -6/Archives | Accompanied by 4 allies (A7) 10922 | -6/Archives | Received a hacking code to weaken MAIN.C 10927 | -6/Archives | Discovered new exit (range 22) 10942 | -6/Archives | Discovered new exit (range 22) 10952 | -6/Archives | Found Prototype Device 10953 | -6/Archives | Identified Exp. Thermal Shield 10959 | -6/Archives | Discovered new exit (range 20) 11302 | -6/Archives | Identified exit to Hub_04(d) 11359 | -6/Archives | Entered Hub_04(d) 11359 | -6/Hub_04(d) | Accompanied by 1 ally 11367 | -6/Hub_04(d) | Retrieved Zion intel report: Unaware Analyses 11368 | -6/Hub_04(d) | Zion Fire squad teleported in 11374 | -6/Hub_04(d) | Build established: Scavenger-Scout 11420 | -6/Hub_04(d) | Retrieved Zion intel report: Prototype Stockpiles 11425 | -6/Hub_04(d) | Discovered new exit (range 9) 11427 | -6/Hub_04(d) | Retrieved Zion intel report: Branch Access 11441 | -6/Hub_04(d) | Network Hub disabled 11445 | -6/Hub_04(d) | Identified exit to Factory 11445 | -6/Hub_04(d) | Entered Factory 11445 | -5/Factory | Evolved 2 slots: Power x1, Propulsion x1 11477 | -5/Factory | Manually triggered Chute Trap 11477 | -5/Factory | Sucked down chute 11477 | -5/Factory | Entered Waste 11485 | -5/Waste | Spotted C-40 Crusher 11485 | -5/Waste | Spotted C-40 Crusher 11488 | -5/Waste | Spotted C-40 Crusher 11488 | -5/Waste | Spotted C-40 Crusher 11488 | -5/Waste | Spotted C-40 Crusher 11496 | -5/Waste | Spotted C-40 Crusher 11496 | -5/Waste | Discovered new exit (range 12) 11500 | -5/Waste | Crushed by Compactor (1 part destroyed, 1 dropped) 11502 | -5/Waste | Identified exit to Factory 11503 | -5/Waste | Entered Factory 11521 | -5/Factory | Retrieved Zion intel report: Active Terminals 11534 | -5/Factory | Retrieved Zion intel report: Emergency Access 11535 | -5/Factory | Zion Light squad teleported in 11641 | -5/Factory | Discovered new exit (range 16) 11655 | -5/Factory | Identified exit to Factory 11711 | -5/Factory | Self-destructed Last Messages --------------- 11705_ Stasis field depleted. 11705_ Triggered Stasis Trap. 11705_ A bubble of rippling energy engulfs the area. 11705_ Field strength at 95. 11706_ Penetrated by Slug. 11706_ Field strength at 84. 11707_ Slug penetrates Wall. 11707_ Field strength at 73. 11708_ Lgt. Ion Engine destroyed. 11708_ Critical hit (Burn: +26). 11708_ Slug penetrates U-05 Engineer. 11708_ Field strength at 59. 11709_ Field strength at 52. 11710_ Cld. VTOL Module destroyed. 11710_ Slug penetrates Wall. 11710_ Field strength at 40. 11711_ U-05 Engineer lays Concrete. 11711_ Xenon Bombardment Thruster destroyed. 11711_ Slug penetrates U-05 Engineer. 11711_ U-05 Engineer destroyed. Map ----- +----------------------------------------------------+ | ????# "" ??????? | | ????+ G" ### ??????? | | ????# "" = #??? ?????? ??????? | | ????# #???# #??????????????????? | | ????# ! #???? ???????????????????? | | ????### #### #???? ???????????????????? | | ??????# #??# #???? ???????????????????? | | ??????# #??# #??##+###########????????? | | ??????# #??# #??# ! #????????? | | ??????# #??# #??# !! #????????? | | #####?# #??# #??# !! #????????? | | # #??# #??# !#????????? | | """ # #??######## #??# #????????? | | """ + #?????????# #??# #????????? | | """ # #?????????# #??# #????????? | | # #?????????# #??# #????????? | | = ?# #?????????# #??# #????????? | | #######+########### #??# #????????? | | ?????# # #??# #????????? | | ?????# """""" # #??# #????????? | | ?????# """""" #*| #####+#################### | | ?????# """""" #%== ^ Y | | ?????# """"""k#|!%!u Y | | ?????# ;! *t ! w | | ?????# !! !# |%= u = | | ?????# ! # @ !% | | ?????# # ############+########## | | ?????# # #????????? ???????# | | ?????# # #??????? """ ""?????# | | ?????# # #?????# """ """ ???# | | ?????############## #?????# """ """ #??# | | ??????????????????# #?????# #??# | | ??????????????????# #?????# """ """ #??# | | ??????????????????# #?????# """ """ #??#### | | ??????????????????# #?????# """ """ #?????? | | ??????????????????# #?????# #?????? | | ??????????????????+ #?????# ??? ???????? | | ??????????????????# #?????# ??? ????????? | | ??????????????????# #?????# ????? ????????? | | ??????????????????# #?????####?????##????????? | | ??????????????????# #????????????????????????? | | ??????????????????# #????????????????????????? | | ??????????????????# ????????????????????????? | | ??????????????????# ????????????????????????? | | ??????????????????? ?????????????????????????? | | ??????????????????? ???????????????????????????? | | ?????????????????????????????????????????????????? | | ?????????????????????????????????????????????????? | | ?????????????????????????????????????????????????? | | ??????????????????????????????????????+??????????? | +----------------------------------------------------+ Best States ------------- Heat Dissipation 67 Energy Generation 20 Energy Capacity 300 Matter Stores 300 Matter Capacity 300 Sight Range 22 Robot Scan Range 16 Terrain Scan Density 210 Additional Mass Support 12 Armor Coverage 600 Utility Shielding 33 Evasion (%) 66 Targeting Accuracy 8 Melee Accuracy 5 Recoil Reduction 4 Offensive Hacking 12 Defensive Hacking 12 Authchip Count 1 Trap Extractor Capacity 6 Item Schematics ----------------- Huge Storage Unit | -10/Materials | Hacked Hrd. Medium Armor Plating | -8/Materials | Scanalyzed Cld. VTOL Module | -8/Materials | Scanalyzed Recoil Stabilizer | -6/Factory | Extracted Robot Schematics ------------------ None Fabricated ------------ Cld. VTOL Module | x1 | -7/Factory | Authchip Cld. VTOL Module | x1 | -6/Factory | Authchip Alien Tech Used ----------------- None Achievements -------------- None Challenges ------------ None Game ------ Seed ChargeXenonSlayer Manual? 0 Play Time 01:42:17 Cumulative 211.3 hours Start 2022.05.21 @ 15:41:50 End 2022.05.21 @ 17:24:46 Sessions 1 Manual Loads 0 Difficulty Rogue Special Mode None Game No. 107 Rogue 1 Adventurer 106 Explorer 0 Win Type - Total 15 Types 8/1/1/1/1/0/1/1/1 Lore% 89 Gallery% 85 Achievement% 76 Wizard Run 0 Options --------- ASCII 0 Keyboard 1 Movement Numpad Keybinds 0 Fullscreen 2 Font 18/SmallcapsGlow Map View 76x50 Tactical HUD 1 Map Filters NONE Filters NONE Steam 1 RUN: ef768dad-a6fd-4d6b-a561-7333fc580155